[Event "Titled Tuesday Blitz August 1 Early 2023"]
[White "Warchol, Kamil"]
[Black "Porter, Ryan W"]
[WhiteFideId "21858241"]
[BlackFideId "2011239"]
[WhiteElo "2266"]
[BlackElo "2517"]
[Result "1-0"]
[Round "8"]
[TimeControl "180+1"]
[Date "2023.08.01"]
[WhiteClock "0:00:07"]
[BlackClock "0:00:00"]
[Board "167"]

1. e4 {[%clk 0:03:00]}  d5 {[%clk 0:02:59]} 2. exd5 {[%clk 0:02:59]}  c6 {[%clk 0:03:00]} 3. dxc6 {[%clk 0:02:53]}  Nxc6 {[%clk 0:03:01]} 4. Nf3 {[%clk 0:02:49]}  e5 {[%clk 0:03:00]} 5. Bb5 {[%clk 0:02:41]}  Bd6 {[%clk 0:02:59]} 6. d3 {[%clk 0:02:38]}  Ne7 {[%clk 0:02:58]} 7. O-O {[%clk 0:02:38]}  O-O {[%clk 0:02:56]} 8. Nbd2 {[%clk 0:02:39]}  Bg4 {[%clk 0:02:43]} 9. h3 {[%clk 0:02:37]}  Bh5 {[%clk 0:02:42]} 10. Re1 {[%clk 0:02:35]}  f5 {[%clk 0:02:39]} 11. Nc4 {[%clk 0:02:25]}  Bc7 {[%clk 0:02:29]} 12. Bd2 {[%clk 0:02:17]}  Nd4 {[%clk 0:02:23]} 13. Na3 {[%clk 0:01:49]}  Bxf3 {[%clk 0:02:04]} 14. gxf3 {[%clk 0:01:46]}  Nxb5 {[%clk 0:02:01]} 15. Nxb5 {[%clk 0:01:43]}  Ng6 {[%clk 0:01:59]} 16. f4 {[%clk 0:01:30]}  exf4 {[%clk 0:01:53]} 17. Qf3 {[%clk 0:01:23]}  a6 {[%clk 0:01:30]} 18. Nxc7 {[%clk 0:01:20]}  Qxc7 {[%clk 0:01:31]} 19. c3 {[%clk 0:01:19]}  Rae8 {[%clk 0:01:23]} 20. d4 {[%clk 0:01:17]}  Re4 {[%clk 0:01:16]} 21. Rxe4 {[%clk 0:01:10]}  fxe4 {[%clk 0:01:17]} 22. Qxe4 {[%clk 0:01:10]}  f3 {[%clk 0:01:18]} 23. Re1 {[%clk 0:01:04]}  Kh8 {[%clk 0:01:00]} 24. Kh1 {[%clk 0:00:56]}  Qd7 {[%clk 0:00:52]} 25. Kh2 {[%clk 0:00:38]}  Qb5 {[%clk 0:00:46]} 26. b3 {[%clk 0:00:38]}  Qh5 {[%clk 0:00:41]} 27. Qg4 {[%clk 0:00:35]}  Qd5 {[%clk 0:00:37]} 28. Qe6 {[%clk 0:00:35]}  Qd8 {[%clk 0:00:33]} 29. Bc1 {[%clk 0:00:28]}  Qc7+ {[%clk 0:00:32]} 30. Kh1 {[%clk 0:00:27]}  Qxc3 {[%clk 0:00:32]} 31. Ba3 {[%clk 0:00:26]}  Rg8 {[%clk 0:00:22]} 32. d5 {[%clk 0:00:27]}  Nf4 {[%clk 0:00:20]} 33. Qe3 {[%clk 0:00:27]}  Nxd5 {[%clk 0:00:18]} 34. Qxc3 {[%clk 0:00:22]}  Nxc3 {[%clk 0:00:17]} 35. Re7 {[%clk 0:00:22]}  b5 {[%clk 0:00:12]} 36. Bb2 {[%clk 0:00:19]}  Nxa2 {[%clk 0:00:12]} 37. Rf7 {[%clk 0:00:16]}  b4 {[%clk 0:00:10]} 38. Rxf3 {[%clk 0:00:16]}  Rc8 {[%clk 0:00:09]} 39. Rf7 {[%clk 0:00:15]}  Nc3 {[%clk 0:00:09]} 40. Ra7 {[%clk 0:00:14]}  Kg8 {[%clk 0:00:07]} 41. Rxa6 {[%clk 0:00:13]}  Nd1 {[%clk 0:00:07]} 42. Bd4 {[%clk 0:00:11]}  Rd8 {[%clk 0:00:05]} 43. Bc5 {[%clk 0:00:10]}  Rd3 {[%clk 0:00:04]} 44. Bxb4 {[%clk 0:00:07]}  Nxf2+ {[%clk 0:00:03]} 45. Kg2 {[%clk 0:00:07]}  Nxh3 {[%clk 0:00:03]} 46. Ra8+ {[%clk 0:00:07]}  Kf7 {[%clk 0:00:03]} 47. Ra7+ {[%clk 0:00:07]}  Kg6 {[%clk 0:00:03]} 48. Ra6+ {[%clk 0:00:08]}  Kh5 {[%clk 0:00:03]} 49. Bf8 {[%clk 0:00:08]}  g6 {[%clk 0:00:02]} 50. b4 {[%clk 0:00:08]}  Nf4+ {[%clk 0:00:01]} 51. Kf2 {[%clk 0:00:07]}  Nd5 {[%clk 0:00:00]} 52. b5 {[%clk 0:00:07]} 1-0


[Site "https://www.chess.com"]

[Event "Titled Tuesday Blitz August 1 Early 2023"]
[White "Zaichenko, Daria"]
[Black "Khromkin, Andrey"]
[WhiteFideId "4197453"]
[BlackFideId "4154126"]
[WhiteElo "2262"]
[BlackElo "2442"]
[Result "0-1"]
[Round "8"]
[TimeControl "180+1"]
[Date "2023.08.01"]
[WhiteClock "0:00:27"]
[BlackClock "0:00:16"]
[Board "169"]

1. e4 {[%clk 0:02:58]}  c5 {[%clk 0:02:58]} 2. Nf3 {[%clk 0:02:58]}  Nc6 {[%clk 0:02:58]} 3. d4 {[%clk 0:02:58]}  cxd4 {[%clk 0:02:58]} 4. Nxd4 {[%clk 0:02:59]}  g6 {[%clk 0:02:59]} 5. Nc3 {[%clk 0:02:59]}  Bg7 {[%clk 0:02:59]} 6. Be3 {[%clk 0:02:57]}  Nf6 {[%clk 0:03:00]} 7. Be2 {[%clk 0:02:52]}  O-O {[%clk 0:02:59]} 8. O-O {[%clk 0:02:52]}  d5 {[%clk 0:02:58]} 9. exd5 {[%clk 0:02:48]}  Nxd5 {[%clk 0:02:57]} 10. Nxd5 {[%clk 0:02:49]}  Nxd4 {[%clk 0:02:54]} 11. Bxd4 {[%clk 0:02:44]}  Qxd5 {[%clk 0:02:52]} 12. Bxg7 {[%clk 0:02:43]}  Qxd1 {[%clk 0:02:53]} 13. Raxd1 {[%clk 0:02:42]}  Kxg7 {[%clk 0:02:53]} 14. Bf3 {[%clk 0:02:41]}  Bf5 {[%clk 0:02:53]} 15. c3 {[%clk 0:02:29]}  Rac8 {[%clk 0:02:53]} 16. Rd4 {[%clk 0:02:25]}  Rc7 {[%clk 0:02:52]} 17. Rfd1 {[%clk 0:02:24]}  Kf6 {[%clk 0:02:51]} 18. g4 {[%clk 0:02:23]}  Bc8 {[%clk 0:02:42]} 19. h4 {[%clk 0:02:20]}  h6 {[%clk 0:02:22]} 20. Kg2 {[%clk 0:02:20]}  e5 {[%clk 0:02:21]} 21. Rd6+ {[%clk 0:02:18]}  Ke7 {[%clk 0:02:21]} 22. Kg3 {[%clk 0:02:06]}  Be6 {[%clk 0:02:17]} 23. a3 {[%clk 0:01:57]}  f5 {[%clk 0:02:15]} 24. gxf5 {[%clk 0:01:51]}  gxf5 {[%clk 0:02:15]} 25. Be2 {[%clk 0:01:47]}  Rg8+ {[%clk 0:02:12]} 26. Kf3 {[%clk 0:01:41]}  Rg4 {[%clk 0:02:00]} 27. h5 {[%clk 0:01:36]}  Rh4 {[%clk 0:01:45]} 28. Kg3 {[%clk 0:01:35]}  Rf4 {[%clk 0:01:28]} 29. Rd8 {[%clk 0:01:32]}  Kf6 {[%clk 0:01:18]} 30. R1d6 {[%clk 0:01:27]}  Rg7+ {[%clk 0:01:15]} 31. Kh3 {[%clk 0:01:23]}  b5 {[%clk 0:00:31]} 32. Bxb5 {[%clk 0:01:16]}  Rf3+ {[%clk 0:00:30]} 33. Kh2 {[%clk 0:01:15]}  Rxf2+ {[%clk 0:00:30]} 34. Kh1 {[%clk 0:01:15]}  Rf4 {[%clk 0:00:28]} 35. Rd2 {[%clk 0:01:08]}  Rh4+ {[%clk 0:00:23]} 36. Rh2 {[%clk 0:01:06]}  Rxh2+ {[%clk 0:00:23]} 37. Kxh2 {[%clk 0:01:06]}  f4 {[%clk 0:00:21]} 38. c4 {[%clk 0:01:01]}  f3 {[%clk 0:00:20]} 39. Rd1 {[%clk 0:00:56]}  e4 {[%clk 0:00:19]} 40. Rf1 {[%clk 0:00:49]}  Rg2+ {[%clk 0:00:17]} 41. Kh1 {[%clk 0:00:49]}  Rxb2 {[%clk 0:00:17]} 42. Kg1 {[%clk 0:00:38]}  Kg5 {[%clk 0:00:17]} 43. c5 {[%clk 0:00:27]}  Rxb5 {[%clk 0:00:16]} 0-1


[Site "https://www.chess.com"]

[Event "Titled Tuesday Blitz August 1 Early 2023"]
[White "Smietanska, Wiktoria"]
[Black "Stachanczyk, Jacek"]
[WhiteFideId "21869359"]
[BlackFideId "1116657"]
[WhiteElo "2260"]
[BlackElo "2416"]
[Result "1/2-1/2"]
[Round "8"]
[TimeControl "180+1"]
[Date "2023.08.01"]
[WhiteClock "0:00:05"]
[BlackClock "0:00:08"]
[Board "170"]

1. c4 {[%clk 0:03:00]}  c6 {[%clk 0:02:51]} 2. Nf3 {[%clk 0:02:58]}  d5 {[%clk 0:02:52]} 3. e3 {[%clk 0:02:58]}  Nf6 {[%clk 0:02:51]} 4. b3 {[%clk 0:02:58]}  Bf5 {[%clk 0:02:50]} 5. Bb2 {[%clk 0:02:58]}  Nbd7 {[%clk 0:02:50]} 6. Nc3 {[%clk 0:02:52]}  e6 {[%clk 0:02:50]} 7. d4 {[%clk 0:02:49]}  Bd6 {[%clk 0:02:48]} 8. Be2 {[%clk 0:02:49]}  O-O {[%clk 0:02:48]} 9. Nh4 {[%clk 0:02:49]}  Bg6 {[%clk 0:02:44]} 10. Nxg6 {[%clk 0:02:48]}  hxg6 {[%clk 0:02:44]} 11. O-O {[%clk 0:02:47]}  Qe7 {[%clk 0:02:44]} 12. Bf3 {[%clk 0:02:45]}  Ba3 {[%clk 0:02:38]} 13. Bxa3 {[%clk 0:02:42]}  Qxa3 {[%clk 0:02:39]} 14. Qc2 {[%clk 0:02:33]}  Rfe8 {[%clk 0:02:34]} 15. e4 {[%clk 0:02:32]}  dxe4 {[%clk 0:02:31]} 16. Nxe4 {[%clk 0:02:33]}  Nxe4 {[%clk 0:02:30]} 17. Qxe4 {[%clk 0:02:32]}  Rad8 {[%clk 0:02:25]} 18. h4 {[%clk 0:02:13]}  e5 {[%clk 0:02:23]} 19. dxe5 {[%clk 0:01:34]}  Rxe5 {[%clk 0:02:00]} 20. Qf4 {[%clk 0:01:32]}  Rde8 {[%clk 0:01:52]} 21. Rad1 {[%clk 0:01:26]}  Nf6 {[%clk 0:01:48]} 22. Rd2 {[%clk 0:01:02]}  a5 {[%clk 0:01:44]} 23. Rfd1 {[%clk 0:00:50]}  a4 {[%clk 0:01:42]} 24. bxa4 {[%clk 0:00:44]}  Qxa4 {[%clk 0:01:40]} 25. Rd8 {[%clk 0:00:33]}  Qa5 {[%clk 0:01:08]} 26. Rxe8+ {[%clk 0:00:26]}  Rxe8 {[%clk 0:01:09]} 27. Rd2 {[%clk 0:00:12]}  Qc3 {[%clk 0:01:02]} 28. Re2 {[%clk 0:00:08]}  Rxe2 {[%clk 0:00:58]} 29. Bxe2 {[%clk 0:00:08]}  Qa1+ {[%clk 0:00:50]} 30. Bf1 {[%clk 0:00:07]}  Qxa2 {[%clk 0:00:51]} 31. Qb8+ {[%clk 0:00:07]}  Kh7 {[%clk 0:00:51]} 32. Qxb7 {[%clk 0:00:08]}  Qa4 {[%clk 0:00:26]} 33. Qxf7 {[%clk 0:00:07]}  Qd1 {[%clk 0:00:19]} 34. Qe6 {[%clk 0:00:03]}  c5 {[%clk 0:00:15]} 35. Qe5 {[%clk 0:00:01]}  Qd4 {[%clk 0:00:07]} 36. Qxd4 {[%clk 0:00:01]}  cxd4 {[%clk 0:00:08]} 37. Bd3 {[%clk 0:00:02]}  Kg8 {[%clk 0:00:08]} 38. Kf1 {[%clk 0:00:02]}  Kf8 {[%clk 0:00:08]} 39. Bxg6 {[%clk 0:00:02]}  Ke7 {[%clk 0:00:09]} 40. Ke2 {[%clk 0:00:02]}  Kd6 {[%clk 0:00:10]} 41. Bd3 {[%clk 0:00:03]}  Kc5 {[%clk 0:00:11]} 42. g4 {[%clk 0:00:03]}  Nd7 {[%clk 0:00:11]} 43. f3 {[%clk 0:00:03]}  Ne5 {[%clk 0:00:11]} 44. g5 {[%clk 0:00:03]}  Kd6 {[%clk 0:00:09]} 45. h5 {[%clk 0:00:03]}  Ke6 {[%clk 0:00:08]} 46. f4 {[%clk 0:00:04]}  Nd7 {[%clk 0:00:07]} 47. f5+ {[%clk 0:00:04]}  Ke5 {[%clk 0:00:08]} 48. h6 {[%clk 0:00:04]}  gxh6 {[%clk 0:00:08]} 49. gxh6 {[%clk 0:00:05]}  Kf6 {[%clk 0:00:08]} 50. h7 {[%clk 0:00:05]}  Kg7 {[%clk 0:00:08]} 51. Kf3 {[%clk 0:00:04]}  Kxh7 {[%clk 0:00:08]} 52. Ke4 {[%clk 0:00:04]}  Kg7 {[%clk 0:00:07]} 53. Kxd4 {[%clk 0:00:05]}  Kf6 {[%clk 0:00:07]} 54. Kd5 {[%clk 0:00:05]}  Nb6+ {[%clk 0:00:07]} 55. Kc6 {[%clk 0:00:05]}  Nxc4 {[%clk 0:00:07]} 56. Bxc4 {[%clk 0:00:05]}  Kxf5 {[%clk 0:00:08]} 1/2-1/2


[Site "https://www.chess.com"]

[Event "Titled Tuesday Blitz August 1 Early 2023"]
[White "Balla, Tamas-Kristof"]
[Black "Thiel, Thomas"]
[WhiteFideId "1208497"]
[BlackFideId "4615964"]
[WhiteElo "2415"]
[BlackElo "2255"]
[Result "0-1"]
[Round "8"]
[TimeControl "180+1"]
[Date "2023.08.01"]
[WhiteClock "0:00:07"]
[BlackClock "0:00:08"]
[Board "171"]

1. e4 {[%clk 0:03:00]}  d5 {[%clk 0:02:59]} 2. exd5 {[%clk 0:03:00]}  Nf6 {[%clk 0:02:59]} 3. d4 {[%clk 0:02:53]}  Nxd5 {[%clk 0:02:58]} 4. c4 {[%clk 0:02:53]}  Nb6 {[%clk 0:02:56]} 5. Nf3 {[%clk 0:02:52]}  g6 {[%clk 0:02:56]} 6. Nc3 {[%clk 0:02:50]}  Bg7 {[%clk 0:02:55]} 7. Be3 {[%clk 0:02:49]}  O-O {[%clk 0:02:53]} 8. h3 {[%clk 0:02:46]}  Nc6 {[%clk 0:02:52]} 9. Be2 {[%clk 0:02:46]}  Re8 {[%clk 0:02:52]} 10. O-O {[%clk 0:02:45]}  e5 {[%clk 0:02:52]} 11. d5 {[%clk 0:02:45]}  Ne7 {[%clk 0:02:52]} 12. Qd2 {[%clk 0:02:21]}  Nf5 {[%clk 0:02:51]} 13. Rfd1 {[%clk 0:02:05]}  Nxe3 {[%clk 0:02:49]} 14. Qxe3 {[%clk 0:02:04]}  Nd7 {[%clk 0:02:35]} 15. Rac1 {[%clk 0:01:58]}  Qe7 {[%clk 0:02:31]} 16. Ne4 {[%clk 0:01:50]}  Qb4 {[%clk 0:02:13]} 17. a3 {[%clk 0:01:37]}  Qxb2 {[%clk 0:01:59]} 18. Rb1 {[%clk 0:01:29]}  Qc2 {[%clk 0:01:57]} 19. Rb4 {[%clk 0:01:19]}  f5 {[%clk 0:01:53]} 20. Nc3 {[%clk 0:01:11]}  f4 {[%clk 0:01:36]} 21. Qe4 {[%clk 0:00:46]}  Qxe4 {[%clk 0:01:32]} 22. Nxe4 {[%clk 0:00:46]}  Nf6 {[%clk 0:01:28]} 23. Nxf6+ {[%clk 0:00:41]}  Bxf6 {[%clk 0:01:28]} 24. d6 {[%clk 0:00:37]}  cxd6 {[%clk 0:01:26]} 25. Rb2 {[%clk 0:00:26]}  e4 {[%clk 0:01:25]} 26. Nd4 {[%clk 0:00:25]}  e3 {[%clk 0:01:19]} 27. fxe3 {[%clk 0:00:21]}  Rxe3 {[%clk 0:01:20]} 28. Bf3 {[%clk 0:00:17]}  Rxa3 {[%clk 0:01:05]} 29. Rbb1 {[%clk 0:00:14]}  Ra4 {[%clk 0:01:01]} 30. Nb5 {[%clk 0:00:13]}  Be5 {[%clk 0:00:58]} 31. Nxd6 {[%clk 0:00:11]}  Bxd6 {[%clk 0:00:54]} 32. Rxd6 {[%clk 0:00:12]}  Kf8 {[%clk 0:00:51]} 33. Rd5 {[%clk 0:00:10]}  Rxc4 {[%clk 0:00:47]} 34. Re5 {[%clk 0:00:07]}  Rb8 {[%clk 0:00:44]} 35. Rd1 {[%clk 0:00:06]}  Bf5 {[%clk 0:00:40]} 36. Bd5 {[%clk 0:00:05]}  Rc7 {[%clk 0:00:39]} 37. Rde1 {[%clk 0:00:05]}  Rd8 {[%clk 0:00:36]} 38. Bb3 {[%clk 0:00:04]}  f3 {[%clk 0:00:24]} 39. gxf3 {[%clk 0:00:03]}  Bxh3 {[%clk 0:00:22]} 40. Be6 {[%clk 0:00:04]}  Bxe6 {[%clk 0:00:19]} 41. Rxe6 {[%clk 0:00:04]}  Rdd7 {[%clk 0:00:19]} 42. Re8+ {[%clk 0:00:05]}  Kf7 {[%clk 0:00:19]} 43. R8e4 {[%clk 0:00:06]}  Re7 {[%clk 0:00:18]} 44. Rf4+ {[%clk 0:00:06]}  Kg7 {[%clk 0:00:16]} 45. Rd1 {[%clk 0:00:07]}  Rf7 {[%clk 0:00:16]} 46. Rfd4 {[%clk 0:00:06]}  Rxf3 {[%clk 0:00:13]} 47. Kg2 {[%clk 0:00:07]}  Rff7 {[%clk 0:00:12]} 48. Rd6 {[%clk 0:00:08]}  Rfe7 {[%clk 0:00:12]} 49. R6d4 {[%clk 0:00:08]}  b5 {[%clk 0:00:11]} 50. Rd5 {[%clk 0:00:08]}  Rb7 {[%clk 0:00:11]} 51. Rd6 {[%clk 0:00:08]}  a5 {[%clk 0:00:11]} 52. Rb1 {[%clk 0:00:08]}  a4 {[%clk 0:00:12]} 53. Rd3 {[%clk 0:00:06]}  b4 {[%clk 0:00:10]} 54. Rd4 {[%clk 0:00:07]}  a3 {[%clk 0:00:09]} 55. Rdxb4 {[%clk 0:00:06]}  Rxb4 {[%clk 0:00:09]} 56. Rxb4 {[%clk 0:00:07]}  Ra7 {[%clk 0:00:08]} 57. Rb1 {[%clk 0:00:07]}  a2 {[%clk 0:00:09]} 58. Ra1 {[%clk 0:00:08]}  Kf6 {[%clk 0:00:08]} 59. Kg3 {[%clk 0:00:09]}  Ke5 {[%clk 0:00:08]} 60. Kg2 {[%clk 0:00:09]}  Kd4 {[%clk 0:00:08]} 61. Kf2 {[%clk 0:00:10]}  Kc3 {[%clk 0:00:09]} 62. Rc1+ {[%clk 0:00:07]}  Kb2 {[%clk 0:00:08]} 0-1


[Site "https://www.chess.com"]

[Event "Titled Tuesday Blitz August 1 Early 2023"]
[White "Elissalt Cardenas, Hector"]
[Black "alfianasybullina"]
[WhiteFideId "3500632"]
[WhiteElo "2341"]
[BlackElo "2224"]
[Result "0-1"]
[Round "8"]
[TimeControl "180+1"]
[Date "2023.08.01"]
[WhiteClock "0:00:00"]
[BlackClock "0:00:05"]
[Board "175"]

1. d4 {[%clk 0:03:00]}  Nf6 {[%clk 0:02:58]} 2. c4 {[%clk 0:02:57]}  c5 {[%clk 0:02:58]} 3. d5 {[%clk 0:02:57]}  e6 {[%clk 0:02:58]} 4. Nc3 {[%clk 0:02:56]}  exd5 {[%clk 0:02:58]} 5. cxd5 {[%clk 0:02:57]}  d6 {[%clk 0:02:58]} 6. Nf3 {[%clk 0:02:53]}  g6 {[%clk 0:02:53]} 7. h3 {[%clk 0:02:52]}  Bg7 {[%clk 0:02:52]} 8. Bf4 {[%clk 0:02:52]}  O-O {[%clk 0:02:51]} 9. e3 {[%clk 0:02:49]}  b6 {[%clk 0:02:45]} 10. Nd2 {[%clk 0:02:44]}  Ne8 {[%clk 0:02:02]} 11. Nc4 {[%clk 0:02:40]}  Ba6 {[%clk 0:02:00]} 12. a4 {[%clk 0:02:39]}  Bxc4 {[%clk 0:01:59]} 13. Bxc4 {[%clk 0:02:39]}  a6 {[%clk 0:01:59]} 14. O-O {[%clk 0:02:36]}  Nd7 {[%clk 0:01:58]} 15. Qd3 {[%clk 0:02:30]}  Qc8 {[%clk 0:01:57]} 16. Rab1 {[%clk 0:02:10]}  Ne5 {[%clk 0:01:55]} 17. Bxe5 {[%clk 0:02:09]}  Bxe5 {[%clk 0:01:56]} 18. b4 {[%clk 0:02:06]}  Nc7 {[%clk 0:01:30]} 19. bxc5 {[%clk 0:02:03]}  bxc5 {[%clk 0:01:31]} 20. Ne4 {[%clk 0:01:53]}  Qd7 {[%clk 0:01:03]} 21. Rb7 {[%clk 0:01:44]}  Rfb8 {[%clk 0:00:58]} 22. Rfb1 {[%clk 0:01:42]}  Rxb7 {[%clk 0:00:58]} 23. Rxb7 {[%clk 0:01:42]}  h6 {[%clk 0:00:51]} 24. Qb3 {[%clk 0:01:31]}  f5 {[%clk 0:00:45]} 25. Qb6 {[%clk 0:01:19]}  Rc8 {[%clk 0:00:36]} 26. Nxc5 {[%clk 0:01:07]}  dxc5 {[%clk 0:00:35]} 27. Qxg6+ {[%clk 0:01:07]}  Kf8 {[%clk 0:00:28]} 28. d6 {[%clk 0:01:03]}  Bxd6 {[%clk 0:00:20]} 29. Qxh6+ {[%clk 0:00:52]}  Ke7 {[%clk 0:00:17]} 30. Qg5+ {[%clk 0:00:33]}  Ke8 {[%clk 0:00:14]} 31. h4 {[%clk 0:00:21]}  Be7 {[%clk 0:00:12]} 32. Qg6+ {[%clk 0:00:16]}  Kd8 {[%clk 0:00:12]} 33. g3 {[%clk 0:00:12]}  Qe8 {[%clk 0:00:07]} 34. Qxf5 {[%clk 0:00:11]}  Qd7 {[%clk 0:00:07]} 35. Qg6 {[%clk 0:00:11]}  Qe8 {[%clk 0:00:07]} 36. Qd3+ {[%clk 0:00:11]}  Qd7 {[%clk 0:00:07]} 37. Qh7 {[%clk 0:00:09]}  Bf8 {[%clk 0:00:06]} 38. Qg8 {[%clk 0:00:08]}  Qe8 {[%clk 0:00:06]} 39. Qg5+ {[%clk 0:00:01]}  Qe7 {[%clk 0:00:06]} 40. Qf5 {[%clk 0:00:01]}  Qe8 {[%clk 0:00:05]} 41. Qe4 {[%clk 0:00:00]}  Qxe4 {[%clk 0:00:05]} 0-1


[Site "https://www.chess.com"]

[Event "Titled Tuesday Blitz August 1 Early 2023"]
[White "Georg, Heinz"]
[Black "Vila Dupla, Aurelio"]
[WhiteFideId "4607295"]
[BlackFideId "2203383"]
[WhiteElo "2306"]
[BlackElo "2145"]
[Result "0-1"]
[Round "8"]
[TimeControl "180+1"]
[Date "2023.08.01"]
[WhiteClock "0:00:02"]
[BlackClock "0:00:32"]
[Board "182"]

1. e4 {[%clk 0:03:00]}  c5 {[%clk 0:02:59]} 2. Nf3 {[%clk 0:03:00]}  d6 {[%clk 0:02:59]} 3. Bb5+ {[%clk 0:03:00]}  Nd7 {[%clk 0:02:59]} 4. O-O {[%clk 0:02:59]}  a6 {[%clk 0:02:59]} 5. Bxd7+ {[%clk 0:02:58]}  Bxd7 {[%clk 0:02:59]} 6. c3 {[%clk 0:02:58]}  Nf6 {[%clk 0:02:57]} 7. Re1 {[%clk 0:02:59]}  Bc6 {[%clk 0:02:49]} 8. d4 {[%clk 0:02:59]}  cxd4 {[%clk 0:02:40]} 9. cxd4 {[%clk 0:02:58]}  Bxe4 {[%clk 0:02:38]} 10. Nc3 {[%clk 0:02:58]}  Bg6 {[%clk 0:02:20]} 11. Bg5 {[%clk 0:02:47]}  e6 {[%clk 0:02:15]} 12. Bxf6 {[%clk 0:02:34]}  gxf6 {[%clk 0:02:11]} 13. Nh4 {[%clk 0:02:30]}  Be7 {[%clk 0:02:05]} 14. d5 {[%clk 0:02:25]}  e5 {[%clk 0:01:49]} 15. f4 {[%clk 0:02:09]}  f5 {[%clk 0:01:16]} 16. Nxg6 {[%clk 0:02:07]}  hxg6 {[%clk 0:01:09]} 17. fxe5 {[%clk 0:01:57]}  dxe5 {[%clk 0:01:09]} 18. Rxe5 {[%clk 0:01:46]}  Kf8 {[%clk 0:01:09]} 19. Re2 {[%clk 0:01:30]}  Bc5+ {[%clk 0:01:09]} 20. Kf1 {[%clk 0:01:17]}  Rxh2 {[%clk 0:01:07]} 21. g3 {[%clk 0:00:20]}  Rh1+ {[%clk 0:01:04]} 22. Kg2 {[%clk 0:00:20]}  Rxd1 {[%clk 0:01:01]} 23. Rxd1 {[%clk 0:00:20]}  Qd6 {[%clk 0:00:54]} 24. a3 {[%clk 0:00:19]}  Kg7 {[%clk 0:00:50]} 25. b4 {[%clk 0:00:19]}  Ba7 {[%clk 0:00:47]} 26. Rd3 {[%clk 0:00:15]}  Rc8 {[%clk 0:00:42]} 27. Na4 {[%clk 0:00:13]}  b5 {[%clk 0:00:35]} 28. Nc3 {[%clk 0:00:10]}  Rc4 {[%clk 0:00:32]} 29. Nd1 {[%clk 0:00:08]}  Rd4 {[%clk 0:00:31]} 30. Red2 {[%clk 0:00:08]}  Qxd5+ {[%clk 0:00:31]} 31. Kh2 {[%clk 0:00:02]}  Rxd3 {[%clk 0:00:32]} 0-1


[Site "https://www.chess.com"]

[Event "Titled Tuesday Blitz August 1 Early 2023"]
[White "Zaksaite, Salomeja"]
[Black "Feliz Dotel, Dewar Bienvenido"]
[WhiteFideId "12801496"]
[BlackFideId "6402801"]
[WhiteElo "2304"]
[BlackElo "2132"]
[Result "0-1"]
[Round "8"]
[TimeControl "180+1"]
[Date "2023.08.01"]
[WhiteClock "0:00:00"]
[BlackClock "0:00:02"]
[Board "183"]

1. e4 {[%clk 0:02:50]}  e5 {[%clk 0:02:57]} 2. Nf3 {[%clk 0:02:49]}  Nc6 {[%clk 0:02:56]} 3. Bb5 {[%clk 0:02:46]}  Nf6 {[%clk 0:02:55]} 4. d3 {[%clk 0:02:46]}  Ne7 {[%clk 0:02:54]} 5. Nxe5 {[%clk 0:02:35]}  c6 {[%clk 0:02:53]} 6. Ba4 {[%clk 0:02:34]}  Qa5+ {[%clk 0:02:52]} 7. c3 {[%clk 0:02:16]}  Qxe5 {[%clk 0:02:51]} 8. O-O {[%clk 0:02:16]}  Ng6 {[%clk 0:02:38]} 9. f4 {[%clk 0:02:13]}  Qc7 {[%clk 0:02:35]} 10. f5 {[%clk 0:02:11]}  Ne5 {[%clk 0:02:28]} 11. d4 {[%clk 0:02:06]}  Nc4 {[%clk 0:02:25]} 12. e5 {[%clk 0:01:56]}  Nd5 {[%clk 0:02:08]} 13. Qe2 {[%clk 0:01:38]}  b5 {[%clk 0:02:03]} 14. Bc2 {[%clk 0:01:38]}  Ba6 {[%clk 0:01:48]} 15. b3 {[%clk 0:01:06]}  Ncb6 {[%clk 0:01:38]} 16. Bb2 {[%clk 0:01:07]}  O-O-O {[%clk 0:01:30]} 17. Nd2 {[%clk 0:01:05]}  g6 {[%clk 0:01:15]} 18. a4 {[%clk 0:01:05]}  Rg8 {[%clk 0:01:02]} 19. axb5 {[%clk 0:01:03]}  Bxb5 {[%clk 0:01:01]} 20. c4 {[%clk 0:01:03]}  Nb4 {[%clk 0:00:57]} 21. Be4 {[%clk 0:00:32]}  Ba6 {[%clk 0:00:44]} 22. Rxa6 {[%clk 0:00:27]}  Nxa6 {[%clk 0:00:43]} 23. c5 {[%clk 0:00:28]}  Nxc5 {[%clk 0:00:29]} 24. dxc5 {[%clk 0:00:27]}  Bxc5+ {[%clk 0:00:30]} 25. Kh1 {[%clk 0:00:27]}  d5 {[%clk 0:00:27]} 26. Bb1 {[%clk 0:00:17]}  Rge8 {[%clk 0:00:26]} 27. Nf3 {[%clk 0:00:11]}  d4 {[%clk 0:00:21]} 28. Rc1 {[%clk 0:00:11]}  Bb4 {[%clk 0:00:19]} 29. Be4 {[%clk 0:00:09]}  Nd5 {[%clk 0:00:16]} 30. Bxd4 {[%clk 0:00:07]}  gxf5 {[%clk 0:00:14]} 31. Qa6+ {[%clk 0:00:02]}  Qb7 {[%clk 0:00:12]} 32. Rxc6+ {[%clk 0:00:03]}  Kb8 {[%clk 0:00:11]} 33. Qxb7+ {[%clk 0:00:02]}  Kxb7 {[%clk 0:00:11]} 34. Bxd5 {[%clk 0:00:02]}  Rxd5 {[%clk 0:00:11]} 35. Rc4 {[%clk 0:00:02]}  Be7 {[%clk 0:00:07]} 36. Kg1 {[%clk 0:00:02]}  a6 {[%clk 0:00:07]} 37. Kf2 {[%clk 0:00:02]}  a5 {[%clk 0:00:07]} 38. Ke3 {[%clk 0:00:03]}  Bb4 {[%clk 0:00:07]} 39. Ng5 {[%clk 0:00:02]}  Red8 {[%clk 0:00:06]} 40. Nxf7 {[%clk 0:00:02]}  Rf8 {[%clk 0:00:04]} 41. e6 {[%clk 0:00:02]}  h6 {[%clk 0:00:02]} 42. Bg7 {[%clk 0:00:02]}  Rg8 {[%clk 0:00:01]} 43. Bxh6 {[%clk 0:00:00]}  Rxg2 {[%clk 0:00:02]} 0-1


[Site "https://www.chess.com"]